Cogmind - Beta 13 *** ADVENTURER MODE // 2024.04.01 @ 21:17:49 Player: sewer jenny Result: Destroyed by P-60 Hacker with Shock Rifle Performance ------------- Evolutions (1) 500 Regions Visited (4) 800 Robots Destroyed (51) 255 Value Destroyed (1953) 1953 Prototype IDs (0) 0 Alien Tech Used (0) 0 Bonus (320) 320 TOTAL SCORE: 3828 Bonus ------- High Alert Combat Kills 120 Entered Garrisons 200 Cogmind --------- Core Integrity 0/400 Matter 81/300 Energy 73/100 System Corruption 3% Temperature Cool (1) Movement Hovering (60) Location -9/Garrison Parts ------- > --- POWER (1) -------- (None) > --- PROPULSION (4) --- Gravmag System Surge Thruster Surge Thruster > --- UTILITY (2) ------ Signal Interpreter > --- WEAPON (2) ------- (None) > --- INVENTORY (5) ---- (None) Peak State ------------ > --- POWER ------------ Improved Ion Engine > --- PROPULSION ------- Light Treads Light Treads Aluminum Leg Aluminum Leg > --- UTILITY ---------- Sensor Array Signal Interpreter > --- WEAPON ----------- Heavy Assault Rifle Mini Grenade Launcher > --- INVENTORY -------- Ion Engine Light Assault Rifle [Rating: 12] Favorites ----------- Power Improved Ion Engine Engine Improved Ion Engine Power Core Light Nuclear Core Propulsion Aluminum Leg Treads Light Treads Leg Aluminum Leg Hover Unit Gravmag System Flight Unit VTOL Module Utility Signal Interpreter Device Sensor Array Storage Small Storage Unit Processor Signal Interpreter Protection Medium Armor Plating Weapon Heavy Assault Rifle Ballistic Gun Heavy Assault Rifle Ballistic Cannon Light Cannon Launcher Mini Grenade Launcher Build | -11 -10 -9 -9 -9 ------- Run | Yrd Mat Mat Sto Gar Slots Evolved 2 | . . 2 . . Power . | . . . . . Propulsion 2 | . . 2 . . Utility . | . . . . . Weapon . | . . . . . Parts Attached 31 | 4 7 11 . 9 Power 4 | 1 1 1 . 1 Engine 3 | 1 1 1 . . Core 1 | . . . . 1 Reactor . | . . . . . Propulsion 15 | 2 . 7 . 6 Treads 2 | . . 2 . . Leg 7 | 2 . 5 . . Wheel . | . . . . . Hover 1 | . . . . 1 Flight 5 | . . . . 5 Utility 5 | 1 3 . . 1 Device 1 | . 1 . . . Storage 2 | 1 1 . . . Processor 1 | . 1 . . . Hackware . | . . . . . Protection 1 | . . . . 1 Artifact . | . . . . . Weapon 7 | . 3 3 . 1 Energy Gun . | . . . . . Energy Cannon . | . . . . . Ballistic Gun 3 | . 1 1 . 1 Ballistic Cannon 1 | . 1 . . . Launcher 3 | . 1 2 . . Special Weapon . | . . . . . Impact Weapon . | . . . . . Slashing Weapon . | . . . . . Piercing Weapon . | . . . . . Special Melee Weapon . | . . . . . Unidentified Prototypes . | . . . . . Parts Lost 12 | . . 2 3 7 Power 1 | . . . . 1 Propulsion 8 | . . 2 3 3 Utility 1 | . . . . 1 Weapon 2 | . . . . 2 Highest Loss Streak 3 | . . 1 2 3 To Critical Strikes 1 | . . . 1 . Average Slot Usage (%) 81 | . 86 95 92 43 Engine 9 | . 12 11 11 3 Treads 3 | . . 7 . . Leg 26 | . 28 32 36 6 Device 7 | . 4 11 11 3 Storage 3 | . 14 . . . Processor 9 | . 5 11 11 11 Ballistic Gun 7 | . 3 11 11 4 Ballistic Cannon 1 | . 7 . . . Launcher 9 | . 8 11 11 9 Naked Turns . | . . . . . Heaviest Build 20 | 10 20 12 12 12 Greatest Support 40 | 20 20 40 40 10 Greatest Overweight (x) 1 | 1 . . 1 1 Average Overweight (x) . | . . . . . Largest Inventory Capacity 8 | 8 8 5 5 5 Average Capacity 5 | 6 7 5 5 5 Most Carried 5 | 3 5 3 3 4 Average Carried 2 | 1 3 1 2 1 Final Capacity 8 | 8 5 5 5 5 Final Carried 3 | 3 3 3 2 . Class Distribution -------------------- 54% | Mutant 45% | Scavenger-Mutant Dominant Class ---------------- Mutant | -10/Materials Scavenger-Mutant | -9/Materials Scavenger-Mutant | -9/Storage Mutant | -9/Garrison Resources | -11 -10 -9 -9 -9 ----------- Run | Yrd Mat Mat Sto Gar Matter Collected 943 | 240 160 383 71 89 Remotely . | . . . . . Salvage Created 1178 | . 179 615 268 116 Parts 96 | . 14 37 23 22 Haulers Intercepted . | . . . . . Recyclers Shooed 1 | . . . 1 . Parts Field Recycled . | . . . . . Retrieved Matter . | . . . . . Parts Self-Destructed . | . . . . . Prevented . | . . . . . Kills | -11 -10 -9 -9 -9 ------- Run | Yrd Mat Mat Sto Gar Combat Hostiles Destroyed 45 | . 8 15 9 13 Guns 18 | . . 12 4 2 Cannons 7 | . 7 . . . AOE 20 | . 1 3 5 11 Classes Destroyed 10 | . 3 4 1 2 Builder 1 | . . 1 . . Recycler 1 | . . . 1 . Operator 1 | . . 1 . . Watcher 3 | . 1 1 1 . Swarmer 17 | . 3 . 6 8 Cutter 1 | . . . . 1 Grunt 17 | . 5 10 . 2 Duelist 1 | . . 1 . . Sentry 8 | . . 4 3 1 Programmer 1 | . . . . 1 Best Kill Streak 6 | . 4 5 6 4 Combat Bots Only 5 | . 3 5 5 4 Max Kills in Single Turn 4 | . 1 2 3 4 Gunslinging . | . . . . . Exploded 4 | . 1 1 2 4 Melee . | . . . . . Uniques/NPCs Destroyed . | . . . . . Combat | -11 -10 -9 -9 -9 -------- Run | Yrd Mat Mat Sto Gar Hostile Shots Fired 217 | . 18 77 60 62 Missed 80 | . 5 23 26 26 Damage Taken 1496 | . 138 608 279 471 Core 430 | . 30 126 40 234 Absorbed by Shields 4 | . . . . 4 Ignored by Resistances 441 | . 43 178 81 139 Regen/Repaired (Parts) 38 | . 38 . . . Core Remaining (%) 94 | 100 88 . . . Volleys Fired 142 | . 21 71 17 33 Largest 2 | . 1 2 2 2 Hottest 53 | . 35 53 53 53 Shots Fired 159 | . 21 78 26 34 Gun 104 | . . 71 17 16 Cannon 20 | . 20 . . . Launcher 35 | . 1 7 9 18 Special . | . . . . . Kinetic 124 | . 20 71 17 16 Thermal . | . . . . . Explosive 35 | . 1 7 9 18 Electromagnetic . | . . . . . Robot Hit Streak 21 | . 9 21 5 8 Robot Miss Streak 2 | . 1 2 1 2 Penetration Max . | . . . . . Secondary Targets . | . . . . . Shots Hit Robots 122 | . 18 66 14 24 Core Hits 79 | . 9 33 15 22 Critical Kills . | . . . . . Critical Parts Destroyed . | . . . . . Critical Strikes . | . . . . . Melee Attacks . | . . . . . Impact . | . . . . . Slashing . | . . . . . Piercing . | . . . . . Sneak Attacks . | . . . . . Combat Hostiles . | . . . . . Follow-up Attacks . | . . . . . Damage Inflicted 3049 | . 386 1271 515 877 Guns 1183 | . . 902 176 105 Cannons 300 | . 300 . . . Explosions 1566 | . 86 369 339 772 Melee . | . . . . . Ramming . | . . . . . Kinetic 1483 | . 300 902 176 105 Thermal . | . . . . . Explosive 1566 | . 86 369 339 772 Electromagnetic . | . . . . . Impact . | . . . . . Slashing . | . . . . . Piercing . | . . . . . Highest Corruption 3 | . . . . 3 Average Corruption 3 | . . . . 3 Corruption Purged . | . . . . . Corruption Blocked . | . . . . . Overload Shots . | . . . . . Overflow Damage 10 | . . . 8 2 Projectiles . | . . . . . Explosions 10 | . . . 8 2 Melee . | . . . . . Knockbacks 2 | . 2 . . . Impact . | . . . . . Kinetic 2 | . 2 . . . Secondary . | . . . . . Self-Inflicted Damage 99 | . 16 29 . 54 Shots 5 | . 1 1 . 3 Rammed . | . . . . . Targets Rammed . | . . . . . Kicked . | . . . . . Crushed . | . . . . . Highest Temperature 28 | . 3 16 28 . Average Temperature 8 | . 3 5 13 . Received Heat Transfer 473 | . 24 315 81 53 Siege Activations . | . . . . . Robots Corrupted . | . . . . . Combat Hostiles . | . . . . . Parts Fried . | . . . . . Impact Corruptions . | . . . . . Robots Melted . | . . . . . Combat Hostiles . | . . . . . Parts Melted . | . . . . . Heat Transferred . | . . . . . Parts Sabotaged . | . . . . . Parts Stolen . | . . . . . Parts Stripped . | . . . . . Power Chain Reactions . | . . . . . Alert | -11 -10 -9 -9 -9 ------- Run | Yrd Mat Mat Sto Gar Peak Influence 747 | . 255 464 455 747 Initial 260 | . . 91 155 260 Average 276 | . 123 312 285 408 Maximum Alert Level 3 | . 1 2 2 3 Low Security (%) 28 | 100 65 20 14 . Level 1 49 | . 34 53 71 57 Level 2 18 | . . 26 14 25 Level 3 3 | . . . . 17 Level 4 . | . . . . . Level 5 . | . . . . . High Security . | . . . . . Max Security . | . . . . . Squads Dispatched 3 | . 1 1 1 . Investigation 1 | . 1 . . . Extermination . | . . . . . Reinforcement 1 | . . 1 . . Assault . | . . . . . Garrison 1 | . . . 1 . Intercept . | . . . . . Searches Triggered . | . . . . . Construction Impeded . | . . . . . Haulers Reinforced . | . . . . . Active Scanning Responses . | . . . . . Cargo Convoy Interrupts . | . . . . . Stealth | -11 -10 -9 -9 -9 --------- Run | Yrd Mat Mat Sto Gar Distress Signals 2 | . 1 . 1 . Communications Jammed . | . . . . . Distress Signals . | . . . . . Times Spotted 50 | . 9 17 10 14 Peak Tracking Total 5 | . 3 3 5 5 Tactical Retreats 1 | . 1 . . . Traps | -11 -10 -9 -9 -9 ------- Run | Yrd Mat Mat Sto Gar Traps Triggered 5 | . 2 2 . 1 Indirectly . | . . . . . Trap Hack Attempts . | . . . . . Triggered . | . . . . . Disarmed . | . . . . . Reprogrammed . | . . . . . Reused . | . . . . . Traps Extracted . | . . . . . Installed . | . . . . . Triggered . | . . . . . Machines | -11 -10 -9 -9 -9 ---------- Run | Yrd Mat Mat Sto Gar Machines Disabled 6 | . . 1 1 4 Max in Single Turn 4 | . . 1 1 4 Garrison Relay 3 | . . . . 3 Machines Repaired . | . . . . . Machines Dismantled . | . . . . . Machines Sabotaged . | . . . . . Overloaded Fab Kills . | . . . . . Hacking | -11 -10 -9 -9 -9 --------- Run | Yrd Mat Mat Sto Gar Machines Accessed 7 | . 2 2 3 . Terminals 4 | . 1 2 1 . Fabricators . | . . . . . Repair Stations 1 | . 1 . . . Recycling Units 1 | . . . 1 . Scanalyzers . | . . . . . Garrison Access 1 | . . . 1 . Total Hacks 13 | . 4 4 5 . Successful 9 | . 3 3 3 . Failed 4 | . 1 1 2 . Catastrophic . | . . . . . Database Lockouts . | . . . . . Manual . | . . . . . Terminals 6 | . 1 4 1 . Fabricators . | . . . . . Repair Stations 3 | . 3 . . . Recycling Units 3 | . . . 3 . Scanalyzers . | . . . . . Garrison Access 1 | . . . 1 . Terminal Hacks 4 | . 1 3 . . Alert Level 1 | . . 1 . . Dispatch Records 1 | . . 1 . . Maintenance Status 1 | . 1 . . . Zone Layout 1 | . . 1 . . Fabricator Hacks . | . . . . . Repair Station Hacks 2 | . 2 . . . Scan Component 1 | . 1 . . . Repair 1 | . 1 . . . Recycling Unit Hacks 2 | . . . 2 . Recycle Component 1 | . . . 1 . Retrieve Matter 1 | . . . 1 . Scanalyzer . | . . . . . Garrison Access Hacks 1 | . . . 1 . Unlock Access 1 | . . . 1 . Unauthorized Hacks . | . . . . . Terminals . | . . . . . Fabricators . | . . . . . Repair Stations . | . . . . . Recycling Units . | . . . . . Scanalyzers . | . . . . . Garrison Access . | . . . . . Data Cores Recovered . | . . . . . Used . | . . . . . Hacking Detections 4 | . 1 1 2 . Full Trace Events . | . . . . . Feedback Events . | . . . . . Feedback Blocked . | . . . . . Robot Schematics Acquired . | . . . . . Robots Built . | . . . . . Authchips . | . . . . . Time . | . . . . . Total Robot Build Rating . | . . . . . Part Schematics Acquired . | . . . . . Parts Built . | . . . . . Authchips . | . . . . . Time . | . . . . . Total Part Build Rating . | . . . . . Parts Repaired 1 | . 1 . . . Time 26 | . 26 . . . Parts Recycled 1 | . . . 1 . Recycled Matter . | . . . . . Retrieved Matter . | . . . . . Retrieved Components . | . . . . . Parts Scanalyzed . | . . . . . Part Schematics Acquired . | . . . . . Parts Damaged . | . . . . . Bothacking | -11 -10 -9 -9 -9 ------------ Run | Yrd Mat Mat Sto Gar Used RIF Installer . | . . . . . Robots Hacked . | . . . . . Non-combat . | . . . . . Combat . | . . . . . Robot Hacks Applied . | . . . . . Relay Couplers Released 10 | . . . . 10 Machine Destruction 10 | . . . . 10 Fabnet Peak Effective % . | . . . . . Robots Rewired . | . . . . . Allies Hacked . | . . . . . Hacks Repelled . | . . . . . Allies | -11 -10 -9 -9 -9 -------- Run | Yrd Mat Mat Sto Gar Total Allies . | . . . . . Largest Group . | . . . . . Highest-Rated Group . | . . . . . Highest-Rated Ally . | . . . . . Total Orders . | . . . . . Ally Attacks . | . . . . . Total Damage . | . . . . . Kills . | . . . . . Allies Corrupted . | . . . . . Allies Melted . | . . . . . Intel | -11 -10 -9 -9 -9 ------- Run | Yrd Mat Mat Sto Gar Robot Analysis Total . | . . . . . Derelict Logs Recovered . | . . . . . Drone Launches . | . . . . . Drone Recoveries . | . . . . . Exploration | -11 -10 -9 -9 -9 ------------- Run | Yrd Mat Mat Sto Gar Turns Passed 1705 | 59 378 774 147 347 Spaces Moved 1134 | 40 267 464 83 280 Core 95 | 8 . . . 87 Treads 109 | . . 109 . . Legs 852 | 32 267 355 83 115 Wheels . | . . . . . Hover 10 | . . . . 10 Flight 68 | . . . . 68 Fastest Speed 26 | 50 120 120 120 26 Average Speed 116 | 113 120 129 124 89 Slowest Speed 190 | 120 120 160 190 190 Overloaded Moves 6 | . . . . 6 Propulsion Burnouts . | . . . . . Robots Hopped . | . . . . . Cave-ins Triggered . | . . . . . Exploration Rate (%) 26 | 4 38 31 17 44 Regions Visited 4 Branch Regions 1 Pre-discovered Areas . | . . . . . Known Exits Taken 3 | . 1 1 1 . Unknown Exits Taken 1 | 1 . . . . Scrap Searched . | . . . . . Spaces Dug 1 | . . . . 1 Terrain Destroyed 200 | . 7 56 85 52 Melee . | . . . . . Projectile . | . . . . . AOE 200 | . 7 56 85 52 Terrain Rammed . | . . . . . Walls Destroyed . | . . . . . Machines Disabled . | . . . . . Actions | -11 -10 -9 -9 -9 --------- Run | Yrd Mat Mat Sto Gar Total 1365 | 53 305 561 100 346 Wait 3 | 3 . . . . Move 1131 | 39 266 463 83 280 Hop . | . . . . . Pick Up 31 | 7 7 10 . 7 Fast Attach . | . . . . . Attach 28 | 4 7 8 . 9 Detach 1 | . 1 . . . Swap 3 | . . 3 . . Drop 12 | . 3 6 . 3 Fire 142 | . 21 71 17 33 Melee . | . . . . . Ram . | . . . . . Kick . | . . . . . Crush . | . . . . . Escape Stasis 14 | . . . . 14 Rewire . | . . . . . Trap . | . . . . . Miscellaneous . | . . . . . Route ------- -11/Scrapyard -10/Materials -9/Materials (discovered 2 exits: *Min / *Sto) -9/Storage -9/Garrison History --------- Turn | Location | Event 36 | -11/Scrapyard | Discovered new exit (range 15) 60 | -11/Scrapyard | Entered Materials 307 | -10/Materials | Build established: Mutant 373 | -10/Materials | Discovered new exit (range 3) 409 | -10/Materials | Repaired Ion Engine 436 | -10/Materials | Identified exit to Materials 438 | -10/Materials | Entered another Materials area 438 | -9/Materials | Evolved 2 slots: Propulsion x2 605 | -9/Materials | Discovered new exit (range 7) 605 | -9/Materials | Discovered new exit (range 18) 1183 | -9/Materials | Identified exit to Storage 1187 | -9/Materials | Build established: Scavenger-Mutant 1198 | -9/Materials | Identified exit to Mines 1212 | -9/Materials | Entered Storage 1322 | -9/Storage | Garrison activated, responded to threat 1359 | -9/Storage | Identified exit to Garrison 1359 | -9/Storage | Entered Garrison 1400 | -9/Garrison | Triggered checkpoint 1474 | -9/Garrison | Core integrity fell below 50% 1507 | -9/Garrison | Lost 3 parts (1p1u1w) 1558 | -9/Garrison | Triggered checkpoint 1576 | -9/Garrison | Triggered checkpoint 1594 | -9/Garrison | Triggered checkpoint 1622 | -9/Garrison | Triggered checkpoint 1646 | -9/Garrison | Garrison Relay disabled 1646 | -9/Garrison | Garrison Relay disabled 1651 | -9/Garrison | Core integrity fell below 20% 1684 | -9/Garrison | Lost 3 parts (2n1w) 1706 | -9/Garrison | Destroyed by P-60 Hacker with Shock Rifle Last Messages --------------- Flight Unit destroyed. System corrupted by crushing effect (+3). Knocked back. C-17 Slicer destroyed. Acquired Lgt. Assault Rifle. Med. Armor Plating severed. C-17 Slicer destroyed. Acquired Lgt. Nuclear Core. Acquired 16 matter. P-60 Hacker destroyed. Dropped Lgt. Assault Rifle. Dropped VTOL Module. Dropped Lgt. Nuclear Core. Acquired Surge Thruster. The Surge Thruster is "overloadable", activating it again increases its output for additional resource costs, and may damage the unit. Acquired 38 matter. Acquired Gravmag System. [Achievement: First Step to Greatness] Map ----- +----------------------------------------------------+ | ??????????????????????????????????????? | | ??????????????????????????????????????? | | ??????????????????????????????????????? | | ??????????????????????????????????????? | | ????????????????????????????????####### | | ????????????????????????????????# | | ?????????????????#??????????????# | | ???????????????##T??????????????# #### | | ??????????????? ??????????????# #??? | | ???????????????# ??????????????# #??? | | ???????????????# #????########### #??? | | ???????????????# #????# #??? | | ???????????????# #??### ######### #??? | | ???????????????#!####!**#######?# #??? | | ???????????????#! [=* ## #### | | ???????????????# ####!* ###### ## | | ???????????????# #??#/ #??????# | | ???????????????# #??### ##??????# #### | | ???????????#####p###### #???????# #??? | | ???????????# # #???????# #??? | | ???????????# # ???????# #??? | | ???????????# ###???????# #??? | | ???????????# #?????????# #??? | | ??????????## " / #?????????# ???? | | ??????????#"" """=% #?????????# ???? | | ??????????#" @ " ! #?????????# ???? | | ??????????#" #?????????# ???? | | ??????????#" #?????????? ???? | | ??????????#" " #?????????? ???? | | ??????????#""""""### ###????????? ???? | | ??????????######"#?# #??????????????? | | ???????????????#"#?# ###??????????????? | | ???????????????###?# #????????????????? | | ??????????????????## ##???????????????? | | ??????????????????# #???????????????? | | ??????????????????# #???????????????? | | ??????????????????# #???????????????? | | ?????????????????? ???????????????? | | ????????????????? # # ??????????????? | | ???????????????? !" " ?????????????? | | ???????????????? ? ? ?????????????? | | ???????????????" ! !! ????????????? | | ??????????????##? ?##???????????? | | ???????????????? ! ?????????????? | | ???????????????? # ?????????????? | | ???????????????# #????????????? | | ???????????????# # "" #????????????? | | ?????????????????#" """##?????????????? | | ?????????????????###??##??????????????? | | ??????????????????????????????????????? | +----------------------------------------------------+ Best States ------------- Heat Dissipation 28 Energy Generation 14 Energy Capacity 265 Matter Stores 300 Matter Capacity 500 Sight Range 16 Robot Scan Range 14 Terrain Scan Density 10 Armor Coverage 225 Resistance: KI 20 Resistance: TH 20 Resistance: EX 20 Resistance: EM 20 Resistance: I 20 Resistance: S 20 Resistance: P 20 Evasion (%) 62 Recoil Reduction 2 Offensive Hacking 10 Item Schematics ----------------- None Robot Schematics ------------------ None Fabricated ------------ Nothing Alien Tech Used ----------------- None Achievements -------------- First Step to Greatness Remodeling Troublemaker Uninvited Guest Challenges ------------ None Game ------ Seed SpreadImprinterUnit Manual? 0 Play Time 00:41:56 Cumulative 0.6 hours Start 2024.04.01 @ 20:36:29 End 2024.04.01 @ 21:17:49 Sessions 1 Manual Loads 0 Difficulty Adventurer Special Mode None Game No. 0 Rogue 0 Adventurer 0 Explorer 0 Win Type - Total 0 Types 0/0/0/0/0/0/0/0/0 Lore% 0 Gallery% 3 Achievement% 2 Wizard Run 0 Options --------- Layout 1 ASCII 0 Keyboard 0 Movement Mouse Keybinds 0 Fullscreen 2 Font 24/Smallcaps Map View 50x35 Zoom Use 0% Tactical HUD 0 Map Filters NONE Filters NONE Steam 1 RUN: b99a6215-1fc2-40e0-ae48-69062326d32e